fUSD/lending_fUSD_20250610
["ID","MTS","AMOUNT","RATE_DAILY","PERIOD"]
[365281314,1749576440104,-115.16592614,0.00016164,2]
[365281315,1749576440126,-500.0,0.00016164,2]
[365281316,1749576440149,-200.0,0.00016191,3]
[365281317,1749576440171,-53.53339922,0.0001624,2]
[365281318,1749576450216,168.96,0.00015983,2]
[365281319,1749576512769,666.0,0.0001599,2]
[365281321,1749576545148,-500.0,0.00016164,2]
[365281322,1749576545171,-500.0,0.00016164,2]
[365281323,1749576545192,-640.99660078,0.0001624,2]
[365281324,1749576545214,-600.0,0.00016251,4]
[365281325,1749576545236,-1000.0,0.00016338,2]
[365281326,1749576545257,-500.0,0.00016338,2]
[365281327,1749576545282,-1200.0,0.00016408,2]
[365281328,1749576545303,-600.0,0.00016409,4]
[365281329,1749576556129,-300.0,0.00016436,2]
[365281330,1749576556152,-150.0,0.00016437,2]
[365281331,1749576556174,-293.57586069,0.00016437,2]
[365281332,1749576556196,-209.73055131,0.00016437,2]
[365281333,1749576556216,-219.41955224,0.00016437,2]
[365281334,1749576556237,-232.54713346,0.00016437,2]
[365281335,1749576556258,-490.0,0.00016438,2]
[365281336,1749576556278,-480.0,0.00016438,2]
[365281337,1749576556300,-480.0,0.00016438,2]
[365281338,1749576556320,-480.0,0.00016438,2]
[365281339,1749576556340,-480.0,0.00016438,2]
[365281340,1749576556360,-480.0,0.00016438,2]
[365281341,1749576556381,-490.0,0.00016438,2]
[365281342,1749576556405,-480.0,0.00016438,2]
[365281343,1749576556425,-490.0,0.00016438,2]
[365281344,1749576556446,-534.43706318,0.00016438,2]
[365281345,1749576556470,-491.45011479,0.00016438,2]
[365281346,1749576556490,-593.35,0.00016438,2]
[365281347,1749576556510,-480.0,0.00016438,2]
[365281348,1749576556531,-480.0,0.00016438,2]
[365281349,1749576556553,-480.0,0.00016438,2]
[365281350,1749576556573,-480.0,0.00016438,2]
[365281351,1749576556594,-490.0,0.00016438,2]
[365281352,1749576556615,-449.39429131,0.00016438,2]
[365281353,1749576556635,-480.0,0.00016438,2]
[365281354,1749576556658,-480.0,0.00016438,2]
[365281355,1749576556679,-407.60847003,0.00016438,2]
[365281356,1749576556699,-480.0,0.00016438,2]
[365281357,1749576556719,-480.0,0.00016438,2]
[365281358,1749576556739,-480.0,0.00016438,2]
[365281359,1749576556760,-480.0,0.00016438,2]
[365281360,1749576556780,-480.0,0.00016438,2]
[365281361,1749576556801,-372.08,0.00016438,2]
[365281362,1749576556822,-490.0,0.00016438,2]
[365281363,1749576556842,-490.0,0.00016438,2]
[365281364,1749576556864,-490.0,0.00016438,2]
[365281365,1749576556883,-420.0,0.00016438,2]
[365281366,1749576556904,-490.0,0.00016438,2]
[365281367,1749576556925,-490.0,0.00016438,2]
[365281368,1749576556946,-449.55446987,0.00016438,2]
[365281369,1749576556966,-454.39418177,0.00016438,2]
[365281370,1749576556987,-490.0,0.00016438,2]
[365281371,1749576557009,-480.0,0.00016438,2]
[365281372,1749576557029,-520.8,0.00016438,2]
[365281373,1749576557059,-490.0,0.00016438,2]
[365281374,1749576557087,-490.0,0.00016438,2]
[365281375,1749576557109,-490.0,0.00016438,2]
[365281376,1749576557135,-490.0,0.00016438,2]
[365281377,1749576557163,-490.0,0.00016438,2]
[365281378,1749576557190,-490.0,0.00016438,2]
[365281379,1749576557216,-490.0,0.00016438,2]
[365281380,1749576557240,-490.0,0.00016438,2]
[365281381,1749576557263,-173.02,0.00016438,2]
[365281382,1749576557289,-480.0,0.00016438,2]
[365281383,1749576557315,-554.19978578,0.00016438,2]
[365281384,1749576557340,-490.0,0.00016438,2]
[365281385,1749576557365,-490.0,0.00016438,2]
[365281386,1749576557393,-490.0,0.00016438,2]
[365281387,1749576557419,-490.0,0.00016438,2]
[365281388,1749576557444,-490.0,0.00016438,2]
[365281389,1749576557472,-480.0,0.00016438,2]
[365281390,1749576557498,-480.0,0.00016438,2]
[365281391,1749576557525,-480.0,0.00016438,2]
[365281392,1749576557551,-490.0,0.00016438,2]
[365281393,1749576557577,-480.0,0.00016438,2]
[365281394,1749576557603,-490.0,0.00016438,2]
[365281395,1749576557629,-200.75571104,0.00016438,2]
[365281396,1749576557654,-490.0,0.00016438,2]
[365281397,1749576557679,-490.0,0.00016438,2]
[365281398,1749576557700,-490.0,0.00016438,2]
[365281399,1749576557724,-460.0,0.00016438,2]
[365281400,1749576557752,-490.0,0.00016438,2]
[365281401,1749576557776,-490.0,0.00016438,2]
[365281402,1749576557797,-490.0,0.00016438,2]
[365281403,1749576557819,-480.0,0.00016438,2]
[365281404,1749576557844,-490.0,0.00016438,2]
[365281405,1749576557869,-490.0,0.00016438,2]
[365281406,1749576557891,-480.0,0.00016438,2]
[365281407,1749576557918,-252.03,0.00016438,2]
[365281408,1749576557944,-490.0,0.00016438,2]
[365281409,1749576557971,-490.0,0.00016438,2]
[365281410,1749576558004,-457.96505355,0.00016438,2]
[365281411,1749576558029,-440.0,0.00016438,2]
[365281412,1749576558055,-397.85349285,0.00016438,2]
[365281413,1749576558081,-490.0,0.00016438,2]
[365281414,1749576558107,-490.0,0.00016438,2]
[365281415,1749576558133,-480.0,0.00016438,2]
[365281416,1749576558162,-490.0,0.00016438,2]
[365281417,1749576558188,-490.0,0.00016438,2]
[365281418,1749576558213,-490.0,0.00016438,2]
[365281419,1749576558239,-490.0,0.00016438,2]
[365281420,1749576558264,-490.0,0.00016438,2]
[365281421,1749576558289,-191.15,0.00016438,2]
[365281422,1749576558317,-371.87,0.00016438,2]
[365281423,1749576558344,-262.44,0.00016438,2]
[365281424,1749576558372,-490.0,0.00016438,2]
[365281425,1749576558401,-490.0,0.00016438,2]
[365281426,1749576558428,-480.0,0.00016438,2]
[365281427,1749576558456,-490.0,0.00016438,2]
[365281428,1749576558483,-490.0,0.00016438,2]
[365281429,1749576558508,-490.0,0.00016438,2]
[365281430,1749576558537,-490.0,0.00016438,2]
[365281431,1749576558564,-490.0,0.00016438,2]
[365281432,1749576558594,-490.0,0.00016438,2]
[365281433,1749576558625,-490.0,0.00016438,2]
[365281434,1749576558658,-490.0,0.00016438,2]
[365281435,1749576558685,-480.0,0.00016438,2]
[365281436,1749576558712,-480.0,0.00016438,2]
[365281437,1749576558740,-1546.11,0.00016438,2]
[365281438,1749576558765,-480.0,0.00016438,2]
[365281439,1749576558790,-480.0,0.00016438,2]
[365281440,1749576558815,-490.0,0.00016438,2]
[365281441,1749576558840,-490.0,0.00016438,2]
[365281442,1749576558866,-490.0,0.00016438,2]
[365281443,1749576558893,-490.0,0.00016438,2]
[365281444,1749576558918,-490.0,0.00016438,2]
[365281445,1749576558943,-460.0,0.00016438,2]
[365281446,1749576558967,-480.0,0.00016438,2]
[365281447,1749576558991,-490.0,0.00016438,2]
[365281448,1749576559016,-644.17,0.00016438,2]
[365281449,1749576559041,-490.0,0.00016438,2]
[365281450,1749576559066,-490.0,0.00016438,2]
[365281451,1749576559092,-490.0,0.00016438,2]
[365281452,1749576559116,-364.65421114,0.00016438,2]
[365281453,1749576559143,-480.0,0.00016438,2]
[365281454,1749576559169,-490.0,0.00016438,2]
[365281455,1749576559195,-490.0,0.00016438,2]
[365281456,1749576559219,-849.24,0.00016438,2]
[365281457,1749576559241,-487.14658236,0.00016438,2]
[365281458,1749576559265,-490.0,0.00016438,2]
[365281459,1749576559288,-540.17,0.00016438,2]
[365281460,1749576559311,-490.0,0.00016438,2]
[365281461,1749576559335,-473.34822925,0.00016438,2]
[365281462,1749576559359,-490.0,0.00016438,2]
[365281463,1749576559396,-490.0,0.00016438,2]
[365281464,1749576559424,-460.0,0.00016438,2]
[365281465,1749576559455,-490.0,0.00016438,2]
[365281466,1749576559483,-786.91,0.00016438,2]
[365281467,1749576559509,-490.0,0.00016438,2]
[365281468,1749576559535,-460.0,0.00016438,2]
[365281469,1749576559562,-490.0,0.00016438,2]
[365281470,1749576559587,-480.0,0.00016438,2]
[365281471,1749576559614,-176.52,0.00016438,2]
[365281472,1749576559643,-306.57664538,0.00016438,2]
[365281473,1749576560495,-183.42335462,0.00016438,2]
[365281474,1749576560517,-616.16,0.00016438,2]
[365281475,1749576560543,-480.0,0.00016438,2]
[365281476,1749576560575,-490.0,0.00016438,2]
[365281477,1749576560602,-490.0,0.00016438,2]
[365281478,1749576560626,-490.0,0.00016438,2]
[365281479,1749576560650,-490.0,0.00016438,2]
[365281480,1749576560673,-490.0,0.00016438,2]
[365281481,1749576560696,-453.25,0.00016438,2]
[365281482,1749576560718,-480.0,0.00016438,2]
[365281483,1749576560741,-1177.52,0.00016438,2]
[365281484,1749576560765,-490.0,0.00016438,2]
[365281485,1749576560790,-985.49,0.00016438,2]
[365281486,1749576560817,-490.0,0.00016438,2]
[365281487,1749576560841,-459.54,0.00016438,2]
[365281488,1749576560863,-431.93924788,0.00016438,2]
[365281489,1749576560887,-490.0,0.00016438,2]
[365281490,1749576560912,-490.0,0.00016438,2]
[365281491,1749576560935,-490.0,0.00016438,2]
[365281492,1749576560958,-490.0,0.00016438,2]
[365281493,1749576560980,-395.32424783,0.00016438,2]
[365281494,1749576561003,-490.0,0.00016438,2]
[365281495,1749576561026,-490.0,0.00016438,2]
[365281496,1749576561048,-490.0,0.00016438,2]
[365281497,1749576561070,-490.0,0.00016438,2]
[365281498,1749576561092,-400.71194811,0.00016438,2]
[365281499,1749576561118,-490.0,0.00016438,2]
[365281500,1749576561144,-245.66,0.00016438,2]
[365281501,1749576561165,-490.0,0.00016438,2]
[365281502,1749576561189,-490.0,0.00016438,2]
[365281503,1749576561214,-490.0,0.00016438,2]
[365281504,1749576561236,-490.0,0.00016438,2]
[365281505,1749576561258,-490.0,0.00016438,2]
[365281506,1749576561281,-490.0,0.00016438,2]
[365281507,1749576561304,-317.21250819,0.00016438,2]
[365281508,1749576561326,-1455.96,0.00016438,2]
[365281509,1749576561350,-490.0,0.00016438,2]
[365281510,1749576561372,-490.0,0.00016438,2]
[365281511,1749576561393,-490.0,0.00016438,2]
[365281512,1749576561416,-490.0,0.00016438,2]
[365281513,1749576561440,-490.0,0.00016438,2]
[365281514,1749576561464,-490.0,0.00016438,2]
[365281515,1749576561486,-285.44814325,0.00016438,2]
[365281516,1749576561507,-490.0,0.00016438,2]
[365281517,1749576561529,-490.0,0.00016438,2]
[365281518,1749576561549,-303.27,0.00016438,2]
[365281519,1749576561571,-490.0,0.00016438,2]
[365281520,1749576561593,-490.0,0.00016438,2]
[365281521,1749576561613,-490.0,0.00016438,2]
[365281522,1749576561634,-490.0,0.00016438,2]
[365281523,1749576561657,-490.0,0.00016438,2]
[365281524,1749576561681,-490.0,0.00016438,2]
[365281525,1749576561704,-490.0,0.00016438,2]
[365281526,1749576561727,-490.0,0.00016438,2]
[365281527,1749576561750,-490.0,0.00016438,2]
[365281528,1749576561773,-490.0,0.00016438,2]
[365281529,1749576561796,-490.0,0.00016438,2]
[365281530,1749576561819,-560.62,0.00016438,2]
[365281531,1749576561841,-490.0,0.00016438,2]
[365281532,1749576561863,-157.82,0.00016438,2]
[365281533,1749576561885,-14530.23,0.00016438,2]
[365281534,1749576561909,-490.0,0.00016438,2]
[365281535,1749576561931,-490.0,0.00016438,2]
[365281536,1749576561953,-490.0,0.00016438,2]
[365281537,1749576561975,-490.0,0.00016438,2]
[365281538,1749576561998,-490.0,0.00016438,2]
[365281539,1749576562020,-490.0,0.00016438,2]
[365281540,1749576562046,-480.0,0.00016438,2]
[365281541,1749576562069,-490.0,0.00016438,2]
[365281542,1749576562091,-440.0,0.00016438,2]
[365281543,1749576562112,-480.0,0.00016438,2]
[365281544,1749576562134,-436.01596958,0.00016438,2]
[365281545,1749576562156,-490.0,0.00016438,2]
[365281546,1749576562179,-1395.72,0.00016438,2]
[365281547,1749576562199,-896.43266274,0.00016502,2]
[365281548,1749576562220,-250.0,0.0001651,2]
[365281549,1749576562241,-490.0,0.00016602,2]
[365281550,1749576562262,-490.0,0.00016602,2]
[365281551,1749576562285,-176.95,0.00016602,2]
[365281552,1749576562308,-490.0,0.00016602,2]
[365281553,1749576562330,-490.0,0.00016602,2]
[365281554,1749576562352,-490.0,0.00016602,2]
[365281555,1749576562373,-490.0,0.00016602,2]
[365281556,1749576562394,-490.0,0.00016602,2]
[365281557,1749576562414,-490.0,0.00016602,2]
[365281558,1749576562437,-490.0,0.00016602,2]
[365281559,1749576562459,-263.77,0.00016602,2]
[365281560,1749576562481,-490.0,0.00016602,2]
[365281561,1749576562503,-490.0,0.00016602,2]
[365281562,1749576562525,-469.97299236,0.00016602,2]
[365281563,1749576562547,-531.45,0.00016602,2]
[365281564,1749576562570,-490.0,0.00016602,2]
[365281565,1749576562592,-490.0,0.00016602,2]
[365281566,1749576562614,-490.0,0.00016602,2]
[365281567,1749576562639,-1546.11,0.00016602,2]
[365281568,1749576562667,-490.0,0.00016602,2]
[365281569,1749576562690,-480.0,0.00016602,2]
[365281570,1749576562712,-644.17,0.00016602,2]
[365281571,1749576562739,-490.0,0.00016602,2]
[365281572,1749576562763,-490.0,0.00016602,2]
[365281573,1749576562786,-849.24,0.00016602,2]
[365281574,1749576562807,-540.17,0.00016602,2]
[365281575,1749576562831,-490.0,0.00016602,2]
[365281576,1749576562853,-490.0,0.00016602,2]
[365281577,1749576562877,-490.0,0.00016602,2]
[365281578,1749576562903,-786.91,0.00016602,2]
[365281579,1749576562926,-490.0,0.00016602,2]
[365281580,1749576562949,-490.0,0.00016602,2]
[365281581,1749576562972,-490.0,0.00016602,2]
[365281582,1749576562995,-490.0,0.00016602,2]
[365281583,1749576563017,-470.0,0.00016602,2]
[365281584,1749576563040,-490.0,0.00016602,2]
[365281585,1749576563063,-490.0,0.00016602,2]
[365281586,1749576563086,-1177.52,0.00016602,2]
[365281587,1749576563108,-490.0,0.00016602,2]
[365281588,1749576563132,-985.49,0.00016602,2]
[365281589,1749576563156,-490.0,0.00016602,2]
[365281590,1749576563180,-490.0,0.00016602,2]
[365281591,1749576563204,-537.96,0.00016602,2]
[365281592,1749576563226,-462.04,0.00016602,2]
[365281593,1749576563248,-254.24412079,0.00016602,2]
[365281594,1749576563270,-490.0,0.00016602,2]
[365281595,1749576563291,-490.0,0.00016602,2]
[365281596,1749576563314,-490.0,0.00016602,2]
[365281597,1749576563335,-480.0,0.00016602,2]
[365281598,1749576563553,-490.0,0.00016602,2]
[365281599,1749576563577,-490.0,0.00016602,2]
[365281600,1749576563599,-1455.96,0.00016602,2]
[365281601,1749576563623,-490.0,0.00016602,2]
[365281602,1749576563646,-490.0,0.00016602,2]
[365281603,1749576563669,-490.0,0.00016602,2]
[365281604,1749576563691,-490.0,0.00016602,2]
[365281605,1749576563713,-490.0,0.00016602,2]
[365281606,1749576563736,-490.0,0.00016602,2]
[365281607,1749576563757,-490.0,0.00016602,2]
[365281608,1749576563779,-490.0,0.00016602,2]
[365281609,1749576563804,-617.24,0.00016602,2]
[365281610,1749576563826,-490.0,0.00016602,2]
[365281611,1749576563850,-490.0,0.00016602,2]
[365281612,1749576563873,-490.0,0.00016602,2]
[365281613,1749576563899,-560.62,0.00016602,2]
[365281614,1749576563921,-490.0,0.00016602,2]
[365281615,1749576563946,-14530.23,0.00016602,2]
[365281616,1749576563967,-490.0,0.00016602,2]
[365281617,1749576563988,-490.0,0.00016602,2]
[365281618,1749576564010,-490.0,0.00016602,2]
[365281619,1749576564033,-1395.72,0.00016602,2]
[365281620,1749576564055,-200.0,0.00016648,3]
[365281621,1749576564077,-490.0,0.00016767,2]
[365281622,1749576564099,-331.16596506,0.00016767,2]
[365281623,1749576574106,-490.0,0.00016438,2]
[365281624,1749576574133,-1417.27,0.00016438,2]
[365281625,1749576574160,-490.0,0.00016438,2]
[365281626,1749576574184,-490.0,0.00016438,2]
[365281627,1749576574210,-1417.27,0.00016602,2]
[365281628,1749576574235,-490.0,0.00016602,2]
[365281629,1749576574260,-490.0,0.00016602,2]
[365281630,1749576574338,159.36,0.00016438,2]
[365281648,1749576632086,-1200.0,0.00016437,2]
[365281650,1749576632098,-330.64,0.00016438,2]
[365281652,1749576632109,-490.0,0.00016438,2]
[365281653,1749576632370,-495.25,0.00016438,2]
[365281654,1749576632381,-315.40722054,0.00016438,2]
[365281655,1749576632390,-165.8,0.00016438,2]
[365281656,1749576632400,-490.0,0.00016438,2]
[365281657,1749576632411,-490.0,0.00016438,2]
[365281659,1749576632421,-490.0,0.00016438,2]
[365281661,1749576632430,-490.0,0.00016438,2]
[365281663,1749576632439,-176.57,0.00016438,2]
[365281665,1749576632449,-481.36,0.00016438,2]
[365281667,1749576632459,-778.47,0.00016438,2]
[365281669,1749576632469,-721.33,0.00016438,2]
[365281671,1749576632482,-490.0,0.00016438,2]
[365281673,1749576632492,-490.0,0.00016438,2]
[365281675,1749576632502,-490.0,0.00016602,2]
[365281677,1749576632512,-490.0,0.00016602,2]
[365281679,1749576632522,-164.83863259,0.00016602,2]
[365281681,1749576632534,-325.16136741,0.00016602,2]
[365281683,1749576632544,-490.0,0.00016602,2]
[365281685,1749576632554,-490.0,0.00016602,2]
[365281687,1749576632564,-778.47,0.00016602,2]
[365281689,1749576632574,-721.33,0.00016602,2]
[365281691,1749576632583,-245.18,0.00016602,2]
[365281693,1749576632593,-300.0,0.00016766,2]
[365281695,1749576632602,-490.0,0.00016767,2]
[365281697,1749576632612,-309.33919007,0.00016767,2]
[365281699,1749576632621,-35.03045452,0.00016767,2]
[365281701,1749576632633,-454.96954548,0.00016767,2]
[365281703,1749576632642,-490.0,0.00016767,2]
[365281705,1749576632651,-540.17,0.00016767,2]
[365281707,1749576632663,-217.39,0.00016767,2]
[365281709,1749576632673,-490.0,0.00016767,2]
[365281711,1749576632682,-490.0,0.00016767,2]
[365281712,1749576632692,-490.0,0.00016767,2]
[365281714,1749576632701,-490.0,0.00016767,2]
[365281716,1749576632710,-490.0,0.00016767,2]
[365281718,1749576632719,-453.06,0.00016767,2]
[365281719,1749576632729,-490.0,0.00016767,2]
[365281721,1749576632738,-1177.52,0.00016767,2]
[365281723,1749576632747,-341.86571452,0.00016767,2]
[365281725,1749576632759,-643.62428548,0.00016767,2]
[365281726,1749576632768,-490.0,0.00016767,2]
[365281727,1749576632777,-232.74106452,0.00016767,2]
[365281728,1749576632790,-257.25893548,0.00016767,2]
[365281729,1749576632799,-487.27606452,0.00016767,2]
[365281731,1749576633009,-2.72393548,0.00016767,2]
[365281732,1749576633019,-490.0,0.00016767,2]
[365281733,1749576633029,-29.86408877,0.00016767,2]
[365281734,1749576633041,-460.13591123,0.00016767,2]
[365281735,1749576633050,-490.0,0.00016767,2]
[365281736,1749576633061,-1455.96,0.00016767,2]
[365281737,1749576633070,-480.0,0.00016767,2]
[365281738,1749576633080,-345.0,0.00016767,2]
[365281739,1749576633089,-490.0,0.00016767,2]
[365281740,1749576633099,-490.0,0.00016767,2]
[365281741,1749576633108,-490.0,0.00016767,2]
[365281742,1749576633117,-490.0,0.00016767,2]
[365281743,1749576633127,-490.0,0.00016767,2]
[365281744,1749576633137,-490.0,0.00016767,2]
[365281745,1749576633147,-490.0,0.00016767,2]
[365281746,1749576633157,-490.0,0.00016767,2]
[365281747,1749576633169,-560.62,0.00016767,2]
[365281748,1749576633178,-490.0,0.00016767,2]
[365281749,1749576633189,-14530.23,0.00016767,2]
[365281750,1749576633198,-490.0,0.00016767,2]
[365281751,1749576633208,-490.0,0.00016767,2]
[365281752,1749576633217,-490.0,0.00016767,2]
[365281753,1749576633227,-1395.72,0.00016767,2]
[365281754,1749576633237,-1417.27,0.00016767,2]
[365281755,1749576633246,-490.0,0.00016767,2]
[365281756,1749576633256,-212.76403494,0.00016767,2]
[365281757,1749576633266,-490.0,0.00016767,2]
[365281758,1749576633277,-490.0,0.00016767,2]
[365281759,1749576633287,-490.0,0.00016767,2]
[365281760,1749576633297,-490.0,0.00016767,2]
[365281761,1749576633307,-490.0,0.00016767,2]
[365281762,1749576633316,-778.47,0.00016767,2]
[365281763,1749576633326,-721.33,0.00016767,2]
[365281764,1749576633336,-166.57135391,0.00016831,2]
[365281765,1749576633346,-151.0,0.00016855,2]
[365281766,1749576633356,-151.0,0.00016855,2]
[365281767,1749576633366,-1957.856,0.00016855,2]
[365281768,1749576633376,-500.0,0.00016855,2]
[365281769,1749576633387,-151.0,0.00016855,2]
[365281770,1749576633397,-1500.0,0.00016855,2]
[365281771,1749576633406,-500.0,0.00016855,2]
[365281772,1749576633415,-1500.0,0.00016855,2]
[365281773,1749576633425,-500.0,0.00016855,2]
[365281774,1749576633435,-1500.0,0.00016855,2]
[365281775,1749576633444,-500.0,0.00016855,2]
[365281776,1749576633454,-1000.0,0.00016855,2]
[365281777,1749576633465,-597.60974713,0.00016855,2]
[365281778,1749576633476,-310.41814798,0.00016855,2]
[365281779,1749576633486,-500.0,0.00016855,2]
[365281780,1749576633495,-784.07129256,0.00016855,2]
[365281781,1749576633503,-500.0,0.00016855,2]
[365281782,1749576633513,-500.0,0.00016855,2]
[365281783,1749576633522,-500.0,0.00016855,2]
[365281784,1749576633531,-500.0,0.00016855,2]
[365281785,1749576633541,-500.0,0.00016855,2]
[365281786,1749576633551,-500.0,0.00016855,2]
[365281787,1749576633560,-500.0,0.00016855,2]
[365281788,1749576633570,-336.2986427,0.00016855,2]
[365281789,1749576633579,-207.4,0.00016855,2]
[365281790,1749576633589,-500.0,0.00016896,2]
[365281791,1749576633598,-500.0,0.00016896,2]
[365281792,1749576633608,-500.0,0.00016896,2]
[365281793,1749576633617,-500.0,0.00016896,2]
[365281794,1749576633627,-2030.296672,0.0001691,2]
[365281795,1749576633637,-676.07,0.0001693,2]
[365281796,1749576633651,-958.02,0.00016931,2]
[365281797,1749576633661,-490.0,0.00016931,2]
[365281798,1749576633670,-490.0,0.00016931,2]
[365281799,1749576633683,-490.0,0.00016931,2]
[365281800,1749576633692,-540.17,0.00016931,2]
[365281801,1749576633701,-490.0,0.00016931,2]
[365281802,1749576633711,-490.0,0.00016931,2]
[365281803,1749576633721,-490.0,0.00016931,2]
[365281804,1749576633730,-490.0,0.00016931,2]
[365281805,1749576633739,-490.0,0.00016931,2]
[365281806,1749576633749,-490.0,0.00016931,2]
[365281807,1749576633758,-1177.52,0.00016931,2]
[365281808,1749576633767,-985.49,0.00016931,2]
[365281809,1749576633776,-490.0,0.00016931,2]
[365281810,1749576633786,-490.0,0.00016931,2]
[365281811,1749576633795,-490.0,0.00016931,2]
[365281812,1749576633804,-490.0,0.00016931,2]
[365281813,1749576633813,-490.0,0.00016931,2]
[365281814,1749576633822,-490.0,0.00016931,2]
[365281815,1749576633832,-1455.96,0.00016931,2]
[365281816,1749576633841,-165.19166695,0.00016931,2]
[365281817,1749576633851,-490.0,0.00016931,2]
[365281818,1749576633860,-490.0,0.00016931,2]
[365281819,1749576633869,-490.0,0.00016931,2]
[365281820,1749576633878,-490.0,0.00016931,2]
[365281821,1749576633888,-490.0,0.00016931,2]
[365281822,1749576633896,-343.9,0.00016931,2]
[365281823,1749576633906,-490.0,0.00016931,2]
[365281824,1749576633914,-560.62,0.00016931,2]
[365281825,1749576633924,-490.0,0.00016931,2]
[365281826,1749576633933,-14530.23,0.00016931,2]
[365281827,1749576633942,-397.22,0.00016931,2]
[365281828,1749576633951,-490.0,0.00016931,2]
[365281829,1749576633961,-490.0,0.00016931,2]
[365281830,1749576633970,-1395.72,0.00016931,2]
[365281831,1749576633979,-1417.27,0.00016931,2]
[365281832,1749576633989,-490.0,0.00016931,2]
[365281833,1749576633998,-490.0,0.00016931,2]
[365281834,1749576634007,-490.0,0.00016931,2]
[365281835,1749576634017,-490.0,0.00016931,2]
[365281836,1749576634026,-490.0,0.00016931,2]
[365281837,1749576634035,-490.0,0.00016931,2]
[365281838,1749576634045,-778.47,0.00016931,2]
[365281839,1749576634054,-721.33,0.00016931,2]
[365281840,1749576634063,-2105.41764886,0.00016965,2]
[365281841,1749576634073,-160.7696962,0.00016995,2]
[365281842,1749576634083,-5000.0,0.00016995,2]
[365281843,1749576634092,-2183.31810187,0.0001702,2]
[365281844,1749576634101,-833.29909032,0.00017065,2]
[365281845,1749576634111,-2281.09372479,0.00017075,2]
[365281846,1749576634120,-531.46368335,0.00017088,2]
[365281847,1749576634130,-490.0,0.00017095,2]
[365281848,1749576634140,-490.0,0.00017095,2]
[365281849,1749576634149,-490.0,0.00017095,2]
[365281850,1749576634159,-540.17,0.00017095,2]
[365281851,1749576634168,-490.0,0.00017095,2]
[365281852,1749576634177,-490.0,0.00017095,2]
[365281853,1749576634187,-490.0,0.00017095,2]
[365281854,1749576634197,-490.0,0.00017095,2]
[365281855,1749576634207,-490.0,0.00017095,2]
[365281856,1749576634217,-490.0,0.00017095,2]
[365281857,1749576634227,-1177.52,0.00017095,2]
[365281858,1749576634237,-985.49,0.00017095,2]
[365281859,1749576634247,-562.74,0.00017095,2]
[365281860,1749576634257,-490.0,0.00017095,2]
[365281861,1749576634267,-490.0,0.00017095,2]
[365281862,1749576634277,-490.0,0.00017095,2]
[365281863,1749576634287,-490.0,0.00017095,2]
[365281864,1749576634296,-490.0,0.00017095,2]
[365281865,1749576634306,-1455.96,0.00017095,2]
[365281866,1749576634315,-490.0,0.00017095,2]
[365281867,1749576634325,-490.0,0.00017095,2]